fUST/lending_fUST_20251007
["ID","MTS","AMOUNT","RATE_DAILY","PERIOD"]
[389769896,1759839049596,-2000.0,0.00019516,2]
[389769898,1759839049606,-2000.0,0.00019516,2]
[389769900,1759839049616,-2000.0,0.00019516,2]
[389769901,1759839049626,-2000.0,0.00019516,2]
[389769904,1759839049637,-2000.0,0.00019516,2]
[389769906,1759839049646,-864.44052053,0.00019516,2]
[389769908,1759839049656,-2000.0,0.00019516,2]
[389769910,1759839049666,-2000.0,0.00019516,2]
[389769912,1759839049676,-2000.0,0.00019516,2]
[389769914,1759839049686,-2000.0,0.00019516,2]
[389769916,1759839049696,-2000.0,0.00019516,2]
[389769918,1759839049705,-2000.0,0.00019516,2]
[389769920,1759839049715,-2000.0,0.00019516,2]
[389769922,1759839049725,-2000.0,0.00019516,2]
[389769924,1759839049734,-2000.0,0.00019516,2]
[389769926,1759839049744,-2000.0,0.00019516,2]
[389769928,1759839049755,-1584.91108771,0.00019516,2]
[389769930,1759839049765,-2000.0,0.00019516,2]
[389769932,1759839049775,-2000.0,0.00019516,2]
[389769934,1759839049785,-2000.0,0.00019516,2]
[389769936,1759839049795,-3000.0,0.0001952,2]
[389769938,1759839049805,-3000.0,0.0001953,2]
[389769940,1759839049815,-3000.0,0.0001954,2]
[389769941,1759839049824,-13176.759569,0.00019543,2]
[389769942,1759839049834,-3000.0,0.0001955,2]
[389769943,1759839049844,-3000.0,0.0001956,2]
[389769944,1759839049854,-3000.0,0.0001957,2]
[389769945,1759839049863,-460.0,0.00019576,2]
[389769946,1759839049873,-3000.0,0.0001958,2]
[389769947,1759839049883,-3000.0,0.0001959,2]
[389769948,1759839049893,-500.0,0.000196,2]
[389769949,1759839049903,-500.0,0.000196,2]
[389769950,1759839049913,-3000.0,0.000196,2]
[389769951,1759839049923,-3000.0,0.0001961,2]
[389769952,1759839049932,-3000.0,0.0001962,2]
[389769953,1759839049942,-3000.0,0.0001963,2]
[389769954,1759839049953,-1324.0,0.00019639,2]
[389769955,1759839049964,-3000.0,0.0001964,2]
[389769956,1759839049973,-3000.0,0.0001965,2]
[389769957,1759839049984,-3000.0,0.0001966,2]
[389769958,1759839049994,-3000.0,0.0001967,2]
[389769959,1759839050005,-3000.0,0.0001968,2]
[389769960,1759839050016,-3000.0,0.0001969,2]
[389769961,1759839050027,-3000.0,0.000197,2]
[389769962,1759839050037,-3000.0,0.0001971,2]
[389769963,1759839050047,-3000.0,0.0001972,2]
[389769964,1759839050057,-1135.0,0.00019726,7]
[389769965,1759839050067,-12500.0,0.00019726,7]
[389769966,1759839050078,-1003.75,0.00019726,2]
[389769967,1759839050088,-539.34,0.00019726,2]
[389769968,1759839050097,-1000.0,0.00019726,2]
[389769969,1759839050107,-533.72506543,0.0001973,7]
[389769970,1759839050118,-402.02512307,0.0001973,7]
[389769971,1759839050128,-3000.0,0.0001973,2]
[389769972,1759839050138,-3000.0,0.0001974,2]
[389769973,1759839050148,-3000.0,0.0001975,2]
[389769974,1759839050157,-3000.0,0.0001976,2]
[389769975,1759839050168,-3000.0,0.0001977,2]
[389769976,1759839050178,-690.0,0.00019772,7]
[389769977,1759839050188,-3000.0,0.0001978,2]
[389769978,1759839050198,-3000.0,0.0001979,2]
[389769979,1759839050208,-533.72506543,0.000198,7]
[389769980,1759839050218,-3000.0,0.000198,2]
[389769981,1759839050227,-455.77094497,0.00019804,2]
[389769982,1759839050237,-1942.01531857,0.0001981,2]
[389770065,1759839051752,-180.747625,0.00017177,2]
[389770068,1759839051762,-180.747625,0.00017177,2]
[389770070,1759839051771,-151.0,0.00017177,2]
[389770072,1759839051782,-151.0,0.00017177,2]
[389770073,1759839051791,-151.0,0.00017177,2]
[389770076,1759839051801,-151.0,0.00017177,2]
[389770078,1759839051811,-151.0,0.00017177,2]
[389770079,1759839051820,-151.0,0.00017177,2]
[389770082,1759839051830,-180.747625,0.00017822,2]
[389770083,1759839051839,-180.747625,0.00017822,2]
[389770085,1759839051849,-180.747634,0.00017822,2]
[389770088,1759839051859,-151.0,0.00017822,2]
[389770089,1759839051868,-151.0,0.00017822,2]
[389770091,1759839051877,-151.0,0.00017822,2]
[389770093,1759839051886,-151.0,0.00017822,2]
[389770095,1759839051895,-151.0,0.00017822,2]
[389770097,1759839051905,-151.0,0.00017822,2]
[389770099,1759839051915,-151.0,0.00017822,2]
[389770101,1759839051924,-151.0,0.00017822,2]
[389770103,1759839051933,-293.939476,0.00017822,2]
[389770105,1759839051943,-1264.0,0.00018924,2]
[389770107,1759839051952,-1057.98468143,0.0001981,2]
[389770109,1759839051962,-3000.0,0.0001982,2]
[389770111,1759839051971,-1264.0,0.00019829,2]
[389770113,1759839051980,-2116.33769857,0.0001983,2]
[389770114,1759839051992,-883.66230143,0.0001983,2]
[389770115,1759839052001,-3000.0,0.0001984,2]
[389770116,1759839052012,-204.0,0.0001985,2]
[389770117,1759839052021,-3000.0,0.0001985,2]
[389770118,1759839052031,-3000.0,0.0001986,2]
[389770119,1759839052040,-3000.0,0.0001987,2]
[389770120,1759839052050,-6624.62058675,0.00019874,2]
[389770121,1759839052060,-180.0,0.00019877,2]
[389770122,1759839052070,-182.0,0.00019877,2]
[389770123,1759839052079,-587.0,0.00019877,2]
[389770124,1759839052089,-3000.0,0.0001988,2]
[389770125,1759839052098,-1303.57533668,0.00019886,2]
[389770127,1759839241669,-403.78857193,0.00016423,2]
[389770128,1759839257691,1000.0,0.00027397,120]
[389770130,1759839302616,700.958908,0.00013699,2]
[389770132,1759839415704,-2288.84620629,0.00016259,2]
[389770133,1759839415733,-1617.81615935,0.00016423,2]
[389770134,1759839415787,-1485.72636072,0.00016423,2]
[389770135,1759839416021,-700.958908,0.00016423,2]
[389770136,1759839416049,-160.0,0.00016585,2]
[389770137,1759839416079,-170.81743194,0.00016673,2]
[389770138,1759839416109,-1200.0,0.00016756,2]
[389770139,1759839416137,-519.0,0.00016757,2]
[389770140,1759839416167,-300.0,0.00016757,2]
[389770141,1759839416198,-329.0,0.00016758,2]
[389770142,1759839416227,-267.17019605,0.00016758,2]
[389770143,1759839416256,-341.82820878,0.00016967,2]
[389770144,1759839416441,-2022.46051046,0.00017065,2]
[389770145,1759839416495,-10000.01,0.00017065,2]
[389770146,1759839416519,-10000.01,0.00017065,2]
[389770147,1759839416556,-10000.01,0.00017065,2]
[389770148,1759839416691,-10000.01,0.00017065,2]
[389770149,1759839416817,-2022.51051046,0.00017065,2]
[389770150,1759839416841,-5954.98897908,0.00017065,2]
[389770152,1759839423148,300.0,0.00017065,2]
[389770153,1759839435340,5000.0,0.00017065,2]
[389770155,1759839459144,5000.0,0.00017065,2]
[389770156,1759839482300,0.01,0.00017065,2]
[389770157,1759839482321,4999.99,0.00017065,2]
[389770158,1759839482808,300.0,0.00017065,2]
[389770159,1759839504983,4700.02,0.00017065,2]
[389770160,1759839505006,299.98,0.00017065,2]
[389770161,1759839507420,-360.3499526,0.00017066,2]
[389770162,1759839507450,-214.46005211,0.00017066,2]
[389770163,1759839507480,-500.0,0.00017066,2]
[389770164,1759839507508,-500.0,0.00017066,2]
[389770165,1759839507793,-281.75549671,0.00017066,2]
[389770166,1759839507822,-650.0,0.00017066,2]
[389770167,1759839507849,-508.39466537,0.00017066,2]
[389770168,1759839507877,-500.0,0.00017066,2]
[389770169,1759839507906,-500.0,0.00017066,2]
[389770170,1759839507936,-500.0,0.00017066,2]
[389770171,1759839507971,-470.08966642,0.00017066,2]
[389770172,1759839510597,-29.91033358,0.00017066,2]
[389770173,1759839510627,-500.0,0.00017066,2]
[389770174,1759839510654,-400.18162959,0.00017066,2]
[389770175,1759839510684,-500.0,0.00017066,2]
[389770176,1759839510712,-296.48620428,0.00017066,2]
[389770177,1759839510743,-500.0,0.00017066,2]
[389770178,1759839510772,-500.0,0.00017066,2]
[389770179,1759839510801,-500.0,0.00017066,2]
[389770180,1759839510830,-287.84765159,0.00017066,2]
[389770181,1759839510858,-276.76911077,0.00017066,2]
[389770182,1759839510886,-165.69290899,0.00017066,2]
[389770183,1759839514656,-1534.38915927,0.00017067,2]
[389770184,1759839518536,-10000.01,0.00017067,2]
[389770185,1759839522578,-10000.01,0.00017067,2]
[389770186,1759839527950,5000.0,0.00017065,2]
[389770187,1759839562298,265.50749239,0.00028,120]
[389770188,1759839573281,1000.0,0.00027397,120]
[389770189,1759839612518,-300.0,0.00016065,2]
[389770190,1759839612548,-300.0,0.00016065,2]
[389770191,1759839612579,-300.0,0.00016065,2]
[389770192,1759839612607,-1200.0,0.00016065,2]
[389770193,1759839662414,300.0,0.00016065,2]
[389770194,1759839668077,5500.01,0.00016028,2]
[389770195,1759839668099,10000.01,0.00016028,2]
[389770196,1759839668123,10000.01,0.00016028,2]
[389770197,1759839668144,1259.5526045,0.00016028,2]
[389770198,1759839675044,-7940.4573955,0.00016066,2]
[389770199,1759839675196,-10000.01,0.00016066,2]
[389770200,1759839677091,-756.7439453,0.00016066,2]
[389770201,1759839690178,-5000.0,0.00016629,2]
[389770202,1759839703512,0.01,0.00016629,2]
[389770203,1759839703535,4999.99,0.00016629,2]
[389770204,1759839729497,500.0,0.00028767,120]
[389770205,1759839740929,-5000.0,0.00016629,2]
[389770206,1759839742046,5000.0,0.000196,14]
[389770207,1759839744323,3436.15,0.00028767,120]
[389770208,1759839750083,5000.0,0.000196,14]
[389770209,1759839765461,5000.0,0.000196,14]
[389770210,1759839773384,5000.0,0.000196,14]
[389770211,1759839828918,-204.99752446,0.00015965,2]
[389770212,1759839877324,163.0,7.9e-07,2]
[389770213,1759839878181,163.0,7.9e-07,2]
[389770214,1759839881169,-1747.19229891,0.00016683,2]
[389770215,1759839894352,-183.72676395,0.00016768,2]
[389770216,1759839894499,1000.0,0.00027397,120]
[389770218,1759839909771,-5000.0,0.00016852,2]
[389770219,1759839920060,5000.0,0.000196,14]
[389770220,1759839924751,-162.15010336,0.00016922,2]
[389770221,1759839924781,-830.52513016,0.00016965,2]
[389770222,1759839924809,-1200.0,0.00017022,2]
[389770223,1759839924837,-300.0,0.00017022,2]
[389770224,1759839924866,-1200.0,0.00017022,2]
[389770225,1759839925074,-7300.01,0.00017023,2]
[389770226,1759839925360,-3051.613243,0.00017023,2]
[389770227,1759839925390,-305.7,0.00017057,3]
[389770228,1759839925418,-500.0,0.00017065,2]
[389770229,1759839925448,-500.0,0.00017065,2]
[389770230,1759839925476,-500.0,0.00017065,2]
[389770231,1759839925683,-500.0,0.00017065,2]
[389770232,1759839925716,-500.0,0.00017065,2]
[389770233,1759839925746,-500.0,0.00017065,2]
[389770234,1759839925778,-500.0,0.00017065,2]
[389770235,1759839925810,-500.0,0.00017065,2]
[389770236,1759839925840,-500.0,0.00017065,2]
[389770237,1759839925868,-500.0,0.00017065,2]
[389770238,1759839925896,-500.0,0.00017065,2]
[389770239,1759839925927,-500.0,0.00017065,2]
[389770240,1759839925955,-358.6771133,0.00017065,2]
[389770241,1759839926033,-411.76622437,0.00017065,2]
[389770242,1759839926064,-500.0,0.00017065,2]
[389770243,1759839926092,-500.0,0.00017065,2]
[389770244,1759839926122,-500.0,0.00017065,2]
[389770245,1759839926151,-500.0,0.00017065,2]
[389770246,1759839926181,-296.39650181,0.00017065,2]
[389770247,1759839926211,-500.0,0.00017065,2]
[389770248,1759839926240,-500.0,0.00017065,2]
[389770249,1759839926269,-500.0,0.00017065,2]
[389770250,1759839926299,-500.0,0.00017065,2]
[389770251,1759839926328,-83.68454764,0.00017065,2]
[389770252,1759839926874,-416.31545236,0.00017065,2]
[389770253,1759839926884,-83.68454764,0.00017065,2]
[389770254,1759839926903,-416.31545236,0.00017065,2]
[389770255,1759839926913,-83.68454764,0.00017065,2]
[389770256,1759839926985,-416.31545236,0.00017065,2]
[389770257,1759839927018,-500.0,0.00017065,2]
[389770258,1759839927050,-500.0,0.00017065,2]
[389770259,1759839927081,-500.0,0.00017065,2]
[389770260,1759839927113,-500.0,0.00017065,2]
[389770261,1759839927145,-500.0,0.00017065,2]
[389770262,1759839927176,-500.0,0.00017065,2]
[389770263,1759839927207,-500.0,0.00017065,2]
[389770264,1759839927237,-500.0,0.00017065,2]
[389770265,1759839927268,-500.0,0.00017065,2]
[389770266,1759839927347,-464.30938686,0.00017065,2]
[389770267,1759839927376,-500.0,0.00017065,2]
[389770268,1759839927404,-500.0,0.00017065,2]
[389770269,1759839927433,-617.99678946,0.00017065,2]
[389770270,1759839927462,-500.0,0.00017065,2]
[389770271,1759839927492,-500.0,0.00017065,2]
[389770272,1759839927522,-218.1979223,0.00017065,2]
[389770273,1759839927553,-500.0,0.00017065,2]
[389770274,1759839927797,-500.0,0.00017065,2]
[389770275,1759839927828,-282.21952339,0.00017065,2]
[389770276,1759839927859,-334.56275598,0.00017065,2]
[389770277,1759839928465,-165.43724402,0.00017065,2]
[389770278,1759839928476,-203.06970842,0.00017065,2]
[389770279,1759839930659,-296.93029158,0.00017065,2]
[389770280,1759839930687,-500.0,0.00017065,2]
[389770281,1759839930719,-500.0,0.00017065,2]
[389770282,1759839930749,-500.0,0.00017065,2]
[389770283,1759839930781,-500.0,0.00017065,2]
[389770284,1759839930810,-500.0,0.00017065,2]
[389770285,1759839930841,-500.0,0.00017065,2]
[389770286,1759839930870,-500.0,0.00017065,2]
[389770287,1759839930900,-500.0,0.00017065,2]
[389770288,1759839930929,-500.0,0.00017065,2]
[389770289,1759839931048,-500.0,0.00017065,2]
[389770290,1759839931078,-500.0,0.00017065,2]
[389770291,1759839931107,-500.0,0.00017065,2]
[389770292,1759839931136,-500.0,0.00017065,2]
[389770293,1759839931164,-500.0,0.00017065,2]
[389770294,1759839931194,-500.0,0.00017065,2]
[389770295,1759839931223,-500.0,0.00017065,2]
[389770296,1759839931253,-500.0,0.00017065,2]
[389770297,1759839931285,-500.0,0.00017065,2]
[389770298,1759839931316,-500.0,0.00017065,2]
[389770299,1759839931874,-500.0,0.00017065,2]
[389770300,1759839931904,-500.0,0.00017065,2]
[389770301,1759839931933,-500.0,0.00017065,2]
[389770302,1759839931963,-500.0,0.00017065,2]
[389770303,1759839931992,-500.0,0.00017065,2]
[389770304,1759839932022,-500.0,0.00017065,2]
[389770305,1759839932052,-500.0,0.00017065,2]
[389770306,1759839932085,-500.0,0.00017065,2]
[389770307,1759839932114,-174.46150374,0.00017065,2]
[389770308,1759839932144,-500.0,0.00017065,2]
[389770309,1759839932174,-151.08699252,0.00017065,2]
[389770310,1759839932305,-348.91300748,0.00017065,2]
[389770311,1759839932334,-500.0,0.00017065,2]
[389770312,1759839932365,-500.0,0.00017065,2]
[389770313,1759839932393,-500.0,0.00017065,2]
[389770314,1759839932422,-500.0,0.00017065,2]
[389770315,1759839932451,-500.0,0.00017065,2]
[389770316,1759839932479,-500.0,0.00017065,2]
[389770317,1759839932508,-500.0,0.00017065,2]
[389770318,1759839932536,-500.0,0.00017065,2]
[389770319,1759839932566,-500.0,0.00017065,2]
[389770320,1759839933396,-255.07242432,0.00017065,2]
[389770321,1759839933418,-244.92757568,0.00017065,2]
[389770322,1759839933428,-255.07242432,0.00017065,2]
[389770323,1759839933452,-244.92757568,0.00017065,2]
[389770324,1759839933462,-57.25640936,0.00017065,2]
[389770325,1759839933505,-442.74359064,0.00017065,2]
[389770326,1759839933534,-450.49309442,0.00017065,2]
[389770327,1759839933564,-500.0,0.00017065,2]
[389770328,1759839933594,-500.0,0.00017065,2]
[389770329,1759839933623,-500.0,0.00017065,2]
[389770330,1759839933655,-500.0,0.00017065,2]
[389770331,1759839933688,-500.0,0.00017065,2]
[389770332,1759839933721,-500.0,0.00017065,2]
[389770333,1759839933753,-500.0,0.00017065,2]
[389770334,1759839933786,-500.0,0.00017065,2]
[389770335,1759839933859,-500.0,0.00017065,2]
[389770336,1759839933889,-500.0,0.00017065,2]
[389770337,1759839933920,-500.0,0.00017065,2]
[389770338,1759839933951,-500.0,0.00017065,2]
[389770339,1759839933981,-500.0,0.00017065,2]
[389770340,1759839934017,-500.0,0.00017065,2]
[389770341,1759839934046,-500.0,0.00017065,2]
[389770342,1759839934078,-500.0,0.00017065,2]
[389770343,1759839934106,-500.0,0.00017065,2]
[389770344,1759839934136,-500.0,0.00017065,2]
[389770345,1759839934192,-500.0,0.00017065,2]
[389770346,1759839934223,-500.0,0.00017065,2]
[389770347,1759839934254,-500.0,0.00017065,2]
[389770348,1759839934286,-500.0,0.00017065,2]
[389770349,1759839934320,-500.0,0.00017065,2]
[389770350,1759839934350,-283.34033238,0.00017065,2]
[389770351,1759839934529,-500.0,0.00017065,2]
[389770352,1759839934604,-500.0,0.00017065,2]
[389770353,1759839934638,-500.0,0.00017065,2]
[389770354,1759839934670,-500.0,0.00017065,2]
[389770355,1759839935619,-213.54662988,0.00017065,2]
[389770356,1759839935639,-286.45337012,0.00017065,2]
[389770357,1759839935650,-146.87596512,0.00017065,2]
[389770358,1759839935705,-353.12403488,0.00017065,2]
[389770359,1759839935742,-500.0,0.00017065,2]
[389770360,1759839935779,-500.0,0.00017065,2]
[389770361,1759839935813,-500.0,0.00017065,2]
[389770362,1759839935849,-500.0,0.00017065,2]
[389770363,1759839935884,-500.0,0.00017065,2]
[389770364,1759839935917,-500.0,0.00017065,2]
[389770365,1759839935949,-500.0,0.00017065,2]
[389770366,1759839935982,-500.0,0.00017065,2]
[389770367,1759839936016,-500.0,0.00017065,2]
[389770368,1759839936609,-293.76193024,0.00017065,2]
[389770369,1759839938728,-206.23806976,0.00017065,2]
[389770370,1759839938771,-500.0,0.00017065,2]
[389770371,1759839938811,-500.0,0.00017065,2]
[389770372,1759839938849,-500.0,0.00017065,2]
[389770373,1759839938889,-500.0,0.00017065,2]
[389770374,1759839938928,-500.0,0.00017065,2]
[389770375,1759839938967,-500.0,0.00017065,2]
[389770376,1759839939006,-455.1042426,0.00017065,2]
[389770377,1759839939045,-500.0,0.00017065,2]
[389770378,1759839939081,-500.0,0.00017065,2]
[389770379,1759839939491,-677.32537528,0.00017065,2]
[389770380,1759839939606,-10000.01,0.00017065,2]
[389770381,1759839939672,-10000.01,0.00017065,2]
[389770382,1759839941265,-10000.01,0.00017065,2]
[389770383,1759839943050,-266.6604755,0.00017066,2]
[389770384,1759839943079,-154.43569397,0.00017066,2]
[389770385,1759839943264,5000.0,0.000196,14]
[389770386,1759839951844,515.85640125,0.000196,14]
[389770388,1759839959591,301.35422439,0.00017066,2]
[389770389,1759839967655,5000.0,0.00017066,2]
[389770390,1759839968064,-300.0,0.00017066,2]
[389770391,1759839968126,-4100.01,0.00017067,2]
[389770392,1759839971518,156.51521302,0.00016967,2]
[389770393,1759839971989,-9843.49478698,0.00017067,2]
[389770394,1759839987804,151.0,0.00017065,2]
[389770395,1759839988954,151.0,0.00017065,2]
[389770396,1759839990132,500.0,0.00017065,2]
[389770397,1759839990408,2897.94822365,0.00017066,2]
[389770398,1759839990431,2102.05177635,0.00017066,2]
[389770399,1759839990781,500.0,0.00017065,2]
[389770400,1759839992395,-3698.01,0.00017067,2]
[389770401,1759839992459,500.0,0.00017065,2]
[389770402,1759839993121,500.0,0.00017065,2]
[389770403,1759839996449,-9000.01,0.00017067,2]
[389770404,1759840000331,-10000.01,0.00017067,2]
[389770405,1759840008279,500.0,0.00017065,2]
[389770406,1759840008338,325.03466331,0.00017065,2]
[389770407,1759840012671,500.0,0.00017066,2]
[389770408,1759840012701,500.0,0.00017066,2]
[389770409,1759840012740,605.61034382,0.00017066,2]
[389770410,1759840012770,457.55519883,0.00017066,2]
[389770411,1759840012814,500.0,0.00017066,2]
[389770412,1759840012842,289.27056018,0.00017066,2]
[389770413,1759840012871,500.0,0.00017066,2]
[389770414,1759840012916,500.0,0.00017066,2]
[389770415,1759840012944,479.47431621,0.00017066,2]
[389770416,1759840012984,500.0,0.00017066,2]
[389770417,1759840013030,500.0,0.00017066,2]
[389770418,1759840013061,166.83758385,0.00017066,2]
[389770419,1759840013100,74.17555745,0.00017066,2]
[389770420,1759840013762,-425.82444255,0.00017066,2]
[389770421,1759840013796,-500.0,0.00017066,2]
[389770422,1759840013828,-491.94136295,0.00017066,2]
[389770423,1759840013861,-2164.478389,0.00017066,2]
[389770424,1759840015535,-2835.521611,0.00017066,2]
[389770425,1759840015625,-766.53016535,0.00017067,2]
[389770426,1759840017480,-10000.01,0.00017067,2]
[389770427,1759840025741,-434.270884,0.00016462,2]
[389770428,1759840025770,-173.81,0.00017057,3]
[389770429,1759840025800,-300.0,0.00017066,2]
[389770430,1759840025872,-8183.848232,0.00017067,2]
[389770431,1759840026052,-10000.01,0.00017067,2]
[389770432,1759840026184,-10000.01,0.00017067,2]
[389770433,1759840026346,-10000.01,0.00017067,2]
[389770434,1759840026512,-10000.01,0.00017067,2]
[389770435,1759840026659,-10000.01,0.00017067,2]
[389770436,1759840026818,-10000.01,0.00017067,2]
[389770437,1759840026939,-10000.01,0.00017067,2]
[389770438,1759840027075,-10000.01,0.00017067,2]
[389770439,1759840027195,-10000.01,0.00017067,2]
[389770442,1759840035624,-521.47,0.00017057,3]
[389770443,1759840035739,-8957.07,0.00017067,2]
[389770444,1759840035824,-10000.01,0.00017067,2]
[389770445,1759840035938,-10000.01,0.00017067,2]
[389770446,1759840036027,-10000.01,0.00017067,2]
[389770447,1759840036179,-10000.01,0.00016896,2]
[389770448,1759840036346,-10000.01,0.00016896,2]
[389770449,1759840036504,-10000.01,0.00016896,2]
[389770450,1759840036747,-10000.01,0.00016896,2]
[389770451,1759840036909,-10000.01,0.00016896,2]
[389770453,1759840039663,-10000.01,0.00016896,2]
[389770454,1759840039801,-10000.01,0.00016896,2]
[389770455,1759840039914,-10000.01,0.00016896,2]
[389770456,1759840040053,-4386.55237351,0.00016896,2]
[389770457,1759840040086,-1226.90525298,0.00017067,2]
[389770458,1759840040171,-10000.01,0.00017067,2]
[389770459,1759840040311,-10000.01,0.00017067,2]
[389770460,1759840040934,-10000.01,0.00017067,2]
[389770461,1759840041180,-10000.01,0.00017067,2]
[389770462,1759840041216,-10000.01,0.00017067,2]
[389770463,1759840041231,-10000.01,0.00017067,2]
[389770464,1759840045790,-0.01,0.00016896,2]
[389770465,1759840045816,-9999.99,0.00016896,2]
[389770467,1759840046011,-1200.0,0.00017066,2]
[389770468,1759840046059,-7600.01,0.00017067,2]
[389770469,1759840046122,-10000.01,0.00017067,2]
[389770470,1759840046236,-10000.01,0.00017067,2]
[389770471,1759840046369,-10000.01,0.00017067,2]
[389770472,1759840046542,-10000.01,0.00017067,2]
[389770473,1759840046690,-10000.01,0.00017067,2]
[389770474,1759840046856,-10000.01,0.00017067,2]
[389770475,1759840047012,-10000.01,0.00017067,2]
[389770476,1759840047158,-10000.01,0.00017067,2]
[389770477,1759840049802,-10000.01,0.00017067,2]
[389770478,1759840049957,-4910.59759658,0.00017067,2]
[389770479,1759840049985,-178.81480684,0.00017067,2]
[389770480,1759840050082,-500.0,0.00017067,2]
[389770481,1759840051118,500.0,0.00017066,2]
[389770482,1759840051151,248.83046307,0.00017066,2]
[389770483,1759840051214,500.0,0.00017066,2]
[389770484,1759840051253,500.0,0.00017066,2]
[389770485,1759840051281,500.0,0.00017066,2]
[389770486,1759840051560,500.0,0.00017066,2]
[389770487,1759840051593,500.0,0.00017066,2]
[389770488,1759840051656,500.0,0.00017066,2]
[389770489,1759840051902,558.93075158,0.00017066,2]
[389770490,1759840051930,513.71830695,0.00017066,2]
[389770491,1759840052001,434.60134924,0.00017066,2]
[389770492,1759840052817,2949.19642608,0.00016896,2]
[389770495,1759840060829,794.73270308,0.00017067,2]
[389770496,1759840060854,4205.26729692,0.00017067,2]
[389770497,1759840061869,429.7743846,0.00017026,2]
[389770499,1759840069465,5000.0,0.00017073,2]
[389770501,1759840080359,-509.86160384,0.00017073,2]
[389770502,1759840080389,-501.12818967,0.00017073,2]
[389770503,1759840080418,-500.0,0.00017073,2]
[389770504,1759840080447,-500.74186662,0.00017073,2]
[389770505,1759840080477,-500.0,0.00017073,2]
[389770506,1759840080505,-500.72310717,0.00017073,2]
[389770507,1759840080538,-500.0,0.00017073,2]
[389770508,1759840080813,-436.02898101,0.00017073,2]
[389770509,1759840081411,-3481.72912881,0.00017073,2]
[389770510,1759840081447,-10000.01,0.00017073,2]
[389770511,1759840081532,-10000.01,0.00017073,2]
[389770512,1759840081562,-2301.85535749,0.00017073,2]
[389770513,1759840081571,-500.86608413,0.00017073,2]
[389770514,1759840081580,-151.0,0.000171,2]
[389770515,1759840081589,-500.0,0.00017173,2]
[389770516,1759840081599,-1324.0,0.00017173,2]
[389770517,1759840081609,-151.0,0.00017173,2]
[389770518,1759840081619,-151.0,0.00017173,2]
[389770519,1759840081627,-189.6808087,0.00017173,2]
[389770520,1759840081636,-151.0,0.00017173,2]
[389770521,1759840081646,-151.0,0.00017173,2]
[389770522,1759840081655,-151.1316672,0.00017173,2]
[389770523,1759840081665,-151.0,0.00017173,2]
[389770524,1759840081674,-151.0,0.00017173,2]
[389770525,1759840081684,-500.0,0.00017173,2]
[389770526,1759840081693,-151.0,0.00017173,2]
[389770527,1759840081702,-666.0,0.00017271,2]
[389770528,1759840081712,-500.0,0.00017339,2]
[389770529,1759840081722,-500.0,0.00017339,2]
[389770530,1759840081735,-500.0,0.00017341,2]
[389770531,1759840081746,-300.0,0.00017344,2]
[389770532,1759840081755,-300.0,0.00017344,2]
[389770533,1759840081765,-300.0,0.00017344,2]
[389770534,1759840081775,-258.47608248,0.00017344,2]
[389770536,1759840084207,-300.0,0.00017072,2]
[389770537,1759840084240,-41.52391752,0.00017344,2]
[389770538,1759840084270,-300.0,0.00017344,2]
[389770539,1759840084301,-300.0,0.00017344,2]